[Event "Titled Tuesday Blitz October 11 Early 2022"]
[White "Przybylski, Wojciech"]
[Black "Aloma Vidal, Robert"]
[WhiteFideId "1117599"]
[BlackFideId "2260409"]
[WhiteElo "2221"]
[BlackElo "2435"]
[Result "0-1"]
[Round "09"]
[TimeControl "180+1"]
[Date "2022.10.12"]
[WhiteClock "0:00:06"]
[BlackClock "0:00:32"]

1. e4 {[%clk 0:03:00]}  e5 {[%clk 0:02:56]} 2. Nf3 {[%clk 0:02:59]}  Nf6 {[%clk 0:02:56]} 3. Nc3 {[%clk 0:02:58]}  Nc6 {[%clk 0:02:56]} 4. Bb5 {[%clk 0:02:56]}  Nd4 {[%clk 0:02:55]} 5. Bc4 {[%clk 0:02:52]}  Bc5 {[%clk 0:02:42]} 6. d3 {[%clk 0:02:50]}  d6 {[%clk 0:02:41]} 7. h3 {[%clk 0:02:47]}  a6 {[%clk 0:02:37]} 8. a4 {[%clk 0:02:44]}  h6 {[%clk 0:02:36]} 9. O-O {[%clk 0:02:43]}  O-O {[%clk 0:02:35]} 10. a5 {[%clk 0:02:36]}  Nh7 {[%clk 0:02:26]} 11. Nxd4 {[%clk 0:02:32]}  Bxd4 {[%clk 0:02:26]} 12. Ne2 {[%clk 0:02:31]}  Ba7 {[%clk 0:02:20]} 13. Be3 {[%clk 0:02:28]}  Bxe3 {[%clk 0:02:06]} 14. fxe3 {[%clk 0:02:27]}  c6 {[%clk 0:02:05]} 15. d4 {[%clk 0:02:12]}  d5 {[%clk 0:02:03]} 16. exd5 {[%clk 0:02:08]}  cxd5 {[%clk 0:02:03]} 17. Bb3 {[%clk 0:02:06]}  Re8 {[%clk 0:01:48]} 18. e4 {[%clk 0:02:05]}  Nf6 {[%clk 0:01:35]} 19. exd5 {[%clk 0:01:58]}  Nxd5 {[%clk 0:01:29]} 20. dxe5 {[%clk 0:01:58]}  Be6 {[%clk 0:01:28]} 21. Qd4 {[%clk 0:01:37]}  Ne7 {[%clk 0:01:18]} 22. Bxe6 {[%clk 0:01:24]}  fxe6 {[%clk 0:01:18]} 23. c4 {[%clk 0:00:58]}  Nc6 {[%clk 0:01:15]} 24. Qf4 {[%clk 0:00:45]}  Qe7 {[%clk 0:01:11]} 25. Qe3 {[%clk 0:00:40]}  Qb4 {[%clk 0:01:08]} 26. b3 {[%clk 0:00:30]}  Nxa5 {[%clk 0:01:05]} 27. Nd4 {[%clk 0:00:28]}  Qc5 {[%clk 0:00:57]} 28. Rf3 {[%clk 0:00:25]}  Rad8 {[%clk 0:00:50]} 29. Nc2 {[%clk 0:00:21]}  Nxb3 {[%clk 0:00:48]} 30. Rb1 {[%clk 0:00:16]}  Qxe3+ {[%clk 0:00:46]} 31. Rxe3 {[%clk 0:00:16]}  Nc5 {[%clk 0:00:44]} 32. Rb6 {[%clk 0:00:14]}  Rd2 {[%clk 0:00:43]} 33. Ne1 {[%clk 0:00:12]}  Rd1 {[%clk 0:00:38]} 34. Kh2 {[%clk 0:00:11]}  Red8 {[%clk 0:00:35]} 35. Nf3 {[%clk 0:00:11]}  R8d3 {[%clk 0:00:35]} 36. Rxd3 {[%clk 0:00:09]}  Rxd3 {[%clk 0:00:35]} 37. Kg3 {[%clk 0:00:07]}  Kf7 {[%clk 0:00:35]} 38. Kf2 {[%clk 0:00:06]}  Ke7 {[%clk 0:00:34]} 39. Rb4 {[%clk 0:00:06]}  Ra3 {[%clk 0:00:32]} 40. g4 {[%clk 0:00:06]}  Nd3+ {[%clk 0:00:32]} 0-1


[Site "https://www.chess.com"]

[Event "Titled Tuesday Blitz October 11 Early 2022"]
[White "Rosen, Eric"]
[Black "Shipov, Sergei"]
[WhiteFideId "2032562"]
[BlackFideId "4113624"]
[WhiteElo "2362"]
[BlackElo "2784"]
[Result "0-1"]
[Round "09"]
[TimeControl "180+1"]
[Date "2022.10.11"]
[WhiteClock "0:00:02"]
[BlackClock "0:00:56"]

1. d4 {[%clk 0:03:00]}  Nf6 {[%clk 0:02:58]} 2. Bf4 {[%clk 0:02:58]}  d5 {[%clk 0:02:58]} 3. e3 {[%clk 0:02:58]}  c5 {[%clk 0:02:58]} 4. Nf3 {[%clk 0:02:58]}  Nc6 {[%clk 0:02:58]} 5. Nbd2 {[%clk 0:02:58]}  e6 {[%clk 0:02:54]} 6. c3 {[%clk 0:02:56]}  Nh5 {[%clk 0:02:53]} 7. Bg5 {[%clk 0:02:44]}  f6 {[%clk 0:02:53]} 8. Bh4 {[%clk 0:02:43]}  g6 {[%clk 0:02:54]} 9. Be2 {[%clk 0:02:43]}  cxd4 {[%clk 0:02:49]} 10. cxd4 {[%clk 0:02:37]}  Be7 {[%clk 0:02:48]} 11. O-O {[%clk 0:02:35]}  O-O {[%clk 0:02:48]} 12. Rc1 {[%clk 0:02:36]}  Bd7 {[%clk 0:02:46]} 13. a3 {[%clk 0:02:32]}  a5 {[%clk 0:02:43]} 14. Nb1 {[%clk 0:02:26]}  g5 {[%clk 0:02:33]} 15. Ne1 {[%clk 0:02:22]}  Ng7 {[%clk 0:02:32]} 16. Bg3 {[%clk 0:02:22]}  Nf5 {[%clk 0:02:32]} 17. Nc3 {[%clk 0:02:22]}  Nxg3 {[%clk 0:02:31]} 18. hxg3 {[%clk 0:02:23]}  Be8 {[%clk 0:02:11]} 19. Bh5 {[%clk 0:02:16]}  Bg6 {[%clk 0:02:01]} 20. Bxg6 {[%clk 0:02:03]}  hxg6 {[%clk 0:02:02]} 21. f4 {[%clk 0:02:03]}  gxf4 {[%clk 0:02:01]} 22. gxf4 {[%clk 0:02:03]}  Kg7 {[%clk 0:01:56]} 23. Qg4 {[%clk 0:02:01]}  f5 {[%clk 0:01:54]} 24. Qf3 {[%clk 0:01:55]}  Rh8 {[%clk 0:01:54]} 25. Nd3 {[%clk 0:01:38]}  Qb6 {[%clk 0:01:54]} 26. Na4 {[%clk 0:01:10]}  Qb5 {[%clk 0:01:53]} 27. Nac5 {[%clk 0:01:10]}  Kf7 {[%clk 0:01:52]} 28. Nd7 {[%clk 0:00:57]}  Bd6 {[%clk 0:01:37]} 29. Rxc6 {[%clk 0:00:38]}  bxc6 {[%clk 0:01:35]} 30. N7e5+ {[%clk 0:00:36]}  Kg7 {[%clk 0:01:27]} 31. Rc1 {[%clk 0:00:22]}  Rac8 {[%clk 0:01:21]} 32. Qg3 {[%clk 0:00:15]}  Rh6 {[%clk 0:01:21]} 33. Qg5 {[%clk 0:00:15]}  Qb7 {[%clk 0:01:20]} 34. b4 {[%clk 0:00:11]}  axb4 {[%clk 0:01:18]} 35. axb4 {[%clk 0:00:12]}  Be7 {[%clk 0:01:15]} 36. Qg3 {[%clk 0:00:11]}  Rch8 {[%clk 0:01:14]} 37. Kf2 {[%clk 0:00:06]}  Bh4 {[%clk 0:01:14]} 38. Nc5 {[%clk 0:00:04]}  Bxg3+ {[%clk 0:01:09]} 39. Kxg3 {[%clk 0:00:05]}  Qe7 {[%clk 0:01:09]} 40. Kf3 {[%clk 0:00:04]}  Rh1 {[%clk 0:01:08]} 41. Nxc6 {[%clk 0:00:02]}  Qh4 {[%clk 0:01:00]} 42. Rxh1 {[%clk 0:00:02]}  Qxh1 {[%clk 0:01:00]} 43. Nxe6+ {[%clk 0:00:03]}  Kf6 {[%clk 0:01:00]} 44. Nc7 {[%clk 0:00:02]}  Qf1+ {[%clk 0:00:59]} 45. Kg3 {[%clk 0:00:02]}  Qe2 {[%clk 0:00:55]} 46. Nxd5+ {[%clk 0:00:01]}  Ke6 {[%clk 0:00:56]} 47. Nce7 {[%clk 0:00:02]}  Rd8 {[%clk 0:00:53]} 48. b5 {[%clk 0:00:01]}  Rxd5 {[%clk 0:00:54]} 49. Nxd5 {[%clk 0:00:01]}  Kxd5 {[%clk 0:00:54]} 50. b6 {[%clk 0:00:02]}  Qxe3+ {[%clk 0:00:54]} 51. Kh2 {[%clk 0:00:01]}  Qxf4+ {[%clk 0:00:54]} 52. g3 {[%clk 0:00:01]}  Qb8 {[%clk 0:00:54]} 53. Kg2 {[%clk 0:00:01]}  Qxb6 {[%clk 0:00:55]} 54. Kh3 {[%clk 0:00:01]}  Qxd4 {[%clk 0:00:55]} 55. Kg2 {[%clk 0:00:02]}  Qg4 {[%clk 0:00:56]} 56. Kh2 {[%clk 0:00:02]}  f4 {[%clk 0:00:56]} 0-1


[Site "https://www.chess.com"]

[Event "Titled Tuesday Blitz October 11 Early 2022"]
[White "Rosh Jain"]
[Black "Krzywda, Andrzej"]
[WhiteFideId "25789465"]
[BlackFideId "1114565"]
[WhiteElo "2233"]
[BlackElo "2149"]
[Result "0-1"]
[Round "09"]
[TimeControl "180+1"]
[Date "2022.10.12"]
[WhiteClock "0:00:01"]
[BlackClock "0:00:20"]

1. e4 {[%clk 0:02:53]}  c5 {[%clk 0:02:59]} 2. Nf3 {[%clk 0:02:52]}  d6 {[%clk 0:02:56]} 3. d4 {[%clk 0:02:52]}  cxd4 {[%clk 0:02:57]} 4. Nxd4 {[%clk 0:02:53]}  Nf6 {[%clk 0:02:58]} 5. Nc3 {[%clk 0:02:53]}  a6 {[%clk 0:02:58]} 6. Bc4 {[%clk 0:02:53]}  e6 {[%clk 0:02:57]} 7. Bb3 {[%clk 0:02:52]}  Nbd7 {[%clk 0:02:58]} 8. O-O {[%clk 0:02:51]}  Nc5 {[%clk 0:02:58]} 9. Bg5 {[%clk 0:02:48]}  Be7 {[%clk 0:02:56]} 10. f4 {[%clk 0:02:47]}  Qc7 {[%clk 0:02:21]} 11. Kh1 {[%clk 0:02:41]}  b5 {[%clk 0:02:18]} 12. a3 {[%clk 0:02:18]}  Bb7 {[%clk 0:02:16]} 13. Qe2 {[%clk 0:02:09]}  Nxb3 {[%clk 0:01:58]} 14. Nxb3 {[%clk 0:02:03]}  h6 {[%clk 0:01:54]} 15. Bh4 {[%clk 0:01:59]}  O-O {[%clk 0:01:48]} 16. e5 {[%clk 0:01:58]}  dxe5 {[%clk 0:01:36]} 17. fxe5 {[%clk 0:01:59]}  Nd5 {[%clk 0:01:36]} 18. Bxe7 {[%clk 0:01:53]}  Nxe7 {[%clk 0:01:36]} 19. Rad1 {[%clk 0:01:50]}  Rad8 {[%clk 0:01:30]} 20. Qe3 {[%clk 0:01:17]}  Nf5 {[%clk 0:01:25]} 21. Qf4 {[%clk 0:01:16]}  Qc6 {[%clk 0:01:17]} 22. Rd2 {[%clk 0:01:08]}  Rxd2 {[%clk 0:01:14]} 23. Qxd2 {[%clk 0:01:09]}  Nh4 {[%clk 0:01:07]} 24. Rf2 {[%clk 0:01:04]}  Ba8 {[%clk 0:01:02]} 25. Nd4 {[%clk 0:01:01]}  Qc4 {[%clk 0:00:52]} 26. h3 {[%clk 0:00:42]}  Ng6 {[%clk 0:00:45]} 27. Qe3 {[%clk 0:00:34]}  Rd8 {[%clk 0:00:42]} 28. Nce2 {[%clk 0:00:32]}  Qd5 {[%clk 0:00:39]} 29. c3 {[%clk 0:00:24]}  Qxe5 {[%clk 0:00:37]} 30. Qd3 {[%clk 0:00:21]}  Be4 {[%clk 0:00:33]} 31. Qd2 {[%clk 0:00:17]}  Qh5 {[%clk 0:00:29]} 32. Qe3 {[%clk 0:00:15]}  Bb7 {[%clk 0:00:25]} 33. Qg3 {[%clk 0:00:04]}  Qd5 {[%clk 0:00:23]} 34. Nf4 {[%clk 0:00:02]}  Nxf4 {[%clk 0:00:22]} 35. Rxf4 {[%clk 0:00:01]}  e5 {[%clk 0:00:20]} 0-1


[Site "https://www.chess.com"]

[Event "Titled Tuesday Blitz October 11 Early 2022"]
[White "Sadubayev, Airat"]
[Black "Aldokhin, Ivan"]
[WhiteFideId "13713264"]
[BlackFideId "24115720"]
[WhiteElo "2685"]
[BlackElo "2581"]
[Result "0-1"]
[Round "09"]
[TimeControl "180+1"]
[Date "2022.10.12"]
[WhiteClock "0:00:01"]
[BlackClock "0:00:03"]

1. d4 {[%clk 0:03:00]}  Nf6 {[%clk 0:02:59]} 2. c4 {[%clk 0:02:58]}  g6 {[%clk 0:03:00]} 3. Nc3 {[%clk 0:02:58]}  Bg7 {[%clk 0:03:01]} 4. e4 {[%clk 0:02:57]}  d6 {[%clk 0:03:01]} 5. f3 {[%clk 0:02:56]}  O-O {[%clk 0:03:02]} 6. Be3 {[%clk 0:02:56]}  c6 {[%clk 0:03:02]} 7. Qd2 {[%clk 0:02:53]}  d5 {[%clk 0:03:03]} 8. e5 {[%clk 0:02:46]}  Nfd7 {[%clk 0:03:01]} 9. cxd5 {[%clk 0:02:44]}  cxd5 {[%clk 0:02:58]} 10. Nxd5 {[%clk 0:02:44]}  Nc6 {[%clk 0:02:58]} 11. Nc3 {[%clk 0:02:38]}  Nb6 {[%clk 0:02:57]} 12. f4 {[%clk 0:02:34]}  Nb4 {[%clk 0:02:26]} 13. Rd1 {[%clk 0:02:20]}  Bf5 {[%clk 0:02:17]} 14. Nf3 {[%clk 0:02:08]}  Nc2+ {[%clk 0:01:27]} 15. Kf2 {[%clk 0:02:05]}  Nd5 {[%clk 0:01:24]} 16. Nxd5 {[%clk 0:01:53]}  Qxd5 {[%clk 0:01:25]} 17. b3 {[%clk 0:01:50]}  Rac8 {[%clk 0:01:03]} 18. Bc4 {[%clk 0:01:43]}  Qd7 {[%clk 0:00:49]} 19. Rc1 {[%clk 0:01:37]}  b5 {[%clk 0:00:46]} 20. Bd3 {[%clk 0:01:27]}  Bxd3 {[%clk 0:00:42]} 21. Qxd3 {[%clk 0:01:27]}  Nb4 {[%clk 0:00:42]} 22. Qd2 {[%clk 0:01:26]}  Nd5 {[%clk 0:00:40]} 23. Rxc8 {[%clk 0:01:23]}  Rxc8 {[%clk 0:00:28]} 24. Rc1 {[%clk 0:01:22]}  Bh6 {[%clk 0:00:25]} 25. g3 {[%clk 0:01:17]}  Rxc1 {[%clk 0:00:19]} 26. Qxc1 {[%clk 0:01:16]}  Qf5 {[%clk 0:00:19]} 27. Bd2 {[%clk 0:01:00]}  Bf8 {[%clk 0:00:13]} 28. Qc5 {[%clk 0:00:49]}  e6 {[%clk 0:00:13]} 29. Qxb5 {[%clk 0:00:47]}  Qc2 {[%clk 0:00:14]} 30. a4 {[%clk 0:00:38]}  Bb4 {[%clk 0:00:12]} 31. Qc4 {[%clk 0:00:32]}  Qb2 {[%clk 0:00:07]} 32. Qe2 {[%clk 0:00:13]}  Bxd2 {[%clk 0:00:06]} 33. Nxd2 {[%clk 0:00:12]}  Qxd4+ {[%clk 0:00:06]} 34. Kf3 {[%clk 0:00:10]}  Qc3+ {[%clk 0:00:05]} 35. Kf2 {[%clk 0:00:10]}  a5 {[%clk 0:00:05]} 36. h4 {[%clk 0:00:07]}  h5 {[%clk 0:00:05]} 37. Kg2 {[%clk 0:00:05]}  Ne3+ {[%clk 0:00:05]} 38. Kg1 {[%clk 0:00:05]}  Nf5 {[%clk 0:00:06]} 39. Kh2 {[%clk 0:00:04]}  Qxg3+ {[%clk 0:00:05]} 40. Kh1 {[%clk 0:00:04]}  Qxh4+ {[%clk 0:00:05]} 41. Kg1 {[%clk 0:00:05]}  Qg3+ {[%clk 0:00:06]} 42. Kh1 {[%clk 0:00:03]}  Qxf4 {[%clk 0:00:05]} 43. Qg2 {[%clk 0:00:03]}  Ng3+ {[%clk 0:00:04]} 44. Kg1 {[%clk 0:00:04]}  Nf5 {[%clk 0:00:05]} 45. Qf2 {[%clk 0:00:03]}  Qxe5 {[%clk 0:00:05]} 46. Nc4 {[%clk 0:00:02]}  Qd5 {[%clk 0:00:04]} 47. Kh2 {[%clk 0:00:02]}  g5 {[%clk 0:00:04]} 48. Qb2 {[%clk 0:00:02]}  g4 {[%clk 0:00:03]} 49. Qe5 {[%clk 0:00:02]}  g3+ {[%clk 0:00:03]} 50. Kg1 {[%clk 0:00:01]}  Qd1+ {[%clk 0:00:03]} 51. Kg2 {[%clk 0:00:02]}  Qc2+ {[%clk 0:00:02]} 52. Kf3 {[%clk 0:00:02]}  Qd1+ {[%clk 0:00:03]} 53. Kg2 {[%clk 0:00:02]}  Qg4 {[%clk 0:00:02]} 54. Qe2 {[%clk 0:00:02]}  Nh4+ {[%clk 0:00:02]} 55. Kf1 {[%clk 0:00:03]}  Qh3+ {[%clk 0:00:03]} 56. Ke1 {[%clk 0:00:03]}  g2 {[%clk 0:00:03]} 57. Qe5 {[%clk 0:00:01]}  Nf3+ {[%clk 0:00:03]} 0-1


[Site "https://www.chess.com"]

[Event "Titled Tuesday Blitz October 11 Early 2022"]
[White "Samant Aditya S"]
[Black "Salman, Pavel"]
[WhiteFideId "35080580"]
[BlackFideId "24153753"]
[WhiteElo "2367"]
[BlackElo "2187"]
[Result "1-0"]
[Round "09"]
[TimeControl "180+1"]
[Date "2022.10.12"]
[WhiteClock "0:00:28"]
[BlackClock "0:00:11"]

1. e4 {[%clk 0:02:54]}  c5 {[%clk 0:03:00]} 2. Nf3 {[%clk 0:02:54]}  e6 {[%clk 0:03:01]} 3. d4 {[%clk 0:02:54]}  cxd4 {[%clk 0:03:01]} 4. Nxd4 {[%clk 0:02:55]}  a6 {[%clk 0:03:02]} 5. c4 {[%clk 0:02:55]}  Nf6 {[%clk 0:03:02]} 6. Nc3 {[%clk 0:02:55]}  Qc7 {[%clk 0:03:02]} 7. Be2 {[%clk 0:02:55]}  b6 {[%clk 0:03:03]} 8. O-O {[%clk 0:02:53]}  Bb7 {[%clk 0:03:03]} 9. f3 {[%clk 0:02:54]}  Be7 {[%clk 0:03:03]} 10. Be3 {[%clk 0:02:54]}  d6 {[%clk 0:03:03]} 11. a4 {[%clk 0:02:49]}  O-O {[%clk 0:03:02]} 12. Qd2 {[%clk 0:02:46]}  Nbd7 {[%clk 0:02:56]} 13. a5 {[%clk 0:02:46]}  Rfb8 {[%clk 0:02:33]} 14. axb6 {[%clk 0:02:43]}  Nxb6 {[%clk 0:02:34]} 15. Rfc1 {[%clk 0:02:15]}  Qd8 {[%clk 0:02:25]} 16. b4 {[%clk 0:02:11]}  d5 {[%clk 0:02:18]} 17. c5 {[%clk 0:02:03]}  Nc4 {[%clk 0:01:56]} 18. Bxc4 {[%clk 0:02:04]}  dxc4 {[%clk 0:01:56]} 19. Na4 {[%clk 0:02:01]}  e5 {[%clk 0:01:18]} 20. Nf5 {[%clk 0:02:00]}  Bc8 {[%clk 0:01:14]} 21. Nb6 {[%clk 0:01:27]}  Bxf5 {[%clk 0:01:01]} 22. Qxd8+ {[%clk 0:01:14]}  Bxd8 {[%clk 0:00:48]} 23. Nxa8 {[%clk 0:01:15]}  Rxa8 {[%clk 0:00:30]} 24. exf5 {[%clk 0:01:14]}  Nd5 {[%clk 0:00:31]} 25. Bd2 {[%clk 0:01:11]}  Bf6 {[%clk 0:00:23]} 26. b5 {[%clk 0:00:39]}  e4 {[%clk 0:00:17]} 27. Rxa6 {[%clk 0:00:37]}  Rxa6 {[%clk 0:00:15]} 28. bxa6 {[%clk 0:00:38]}  Bd4+ {[%clk 0:00:16]} 29. Kf1 {[%clk 0:00:37]}  e3 {[%clk 0:00:13]} 30. a7 {[%clk 0:00:30]}  Nc7 {[%clk 0:00:13]} 31. Rxc4 {[%clk 0:00:28]}  Bxc5 {[%clk 0:00:11]} 32. Rxc5 {[%clk 0:00:28]}  exd2 {[%clk 0:00:12]} 33. a8=Q+ {[%clk 0:00:27]}  Nxa8 {[%clk 0:00:11]} 34. Rc8# {[%clk 0:00:28]} 1-0


[Site "https://www.chess.com"]

[Event "Titled Tuesday Blitz October 11 Early 2022"]
[White "Shuvalova, Polina"]
[Black "Timofeev, Artyom"]
[WhiteFideId "24171760"]
[BlackFideId "4140419"]
[WhiteElo "2392"]
[BlackElo "2579"]
[Result "1-0"]
[Round "09"]
[TimeControl "180+1"]
[Date "2022.10.11"]
[WhiteClock "0:01:58"]
[BlackClock "0:02:01"]

1. d4 {[%clk 0:03:00]}  d5 {[%clk 0:02:59]} 2. Nf3 {[%clk 0:03:01]}  Nf6 {[%clk 0:02:58]} 3. Bf4 {[%clk 0:03:01]}  e6 {[%clk 0:02:55]} 4. e3 {[%clk 0:03:02]}  Bd6 {[%clk 0:02:55]} 5. Bxd6 {[%clk 0:02:58]}  Qxd6 {[%clk 0:02:54]} 6. c4 {[%clk 0:02:59]}  O-O {[%clk 0:02:52]} 7. Nc3 {[%clk 0:02:58]}  Nc6 {[%clk 0:02:50]} 8. a3 {[%clk 0:02:43]}  a6 {[%clk 0:02:49]} 9. Rc1 {[%clk 0:02:37]}  Rd8 {[%clk 0:02:48]} 10. cxd5 {[%clk 0:02:29]}  exd5 {[%clk 0:02:47]} 11. Bd3 {[%clk 0:02:30]}  Ne7 {[%clk 0:02:44]} 12. Qc2 {[%clk 0:02:29]}  c6 {[%clk 0:02:44]} 13. O-O {[%clk 0:02:26]}  Ng6 {[%clk 0:02:39]} 14. Rfe1 {[%clk 0:02:21]}  Bg4 {[%clk 0:02:38]} 15. Nd2 {[%clk 0:02:20]}  Be6 {[%clk 0:02:33]} 16. Na4 {[%clk 0:02:16]}  Ng4 {[%clk 0:02:28]} 17. Nf1 {[%clk 0:02:15]}  Qe7 {[%clk 0:02:25]} 18. Nc5 {[%clk 0:02:13]}  Rac8 {[%clk 0:02:19]} 19. Nxe6 {[%clk 0:02:12]}  fxe6 {[%clk 0:02:19]} 20. Bxg6 {[%clk 0:02:12]}  hxg6 {[%clk 0:02:17]} 21. Qxg6 {[%clk 0:02:09]}  Qh4 {[%clk 0:02:09]} 22. g3 {[%clk 0:02:01]}  Qh3 {[%clk 0:02:02]} 23. Qxe6+ {[%clk 0:02:01]}  Kh8 {[%clk 0:02:01]} 24. f3 {[%clk 0:01:58]} 1-0


[Site "https://www.chess.com"]

[Event "Titled Tuesday Blitz October 11 Early 2022"]
[White "Shvedova, Alexandra"]
[Black "Vlassov, Nikolai"]
[WhiteFideId "54154782"]
[BlackFideId "4103360"]
[WhiteElo "2090"]
[BlackElo "2324"]
[Result "1/2-1/2"]
[Round "09"]
[TimeControl "180+1"]
[Date "2022.10.12"]
[WhiteClock "0:00:04"]
[BlackClock "0:00:09"]

1. Nf3 {[%clk 0:03:00]}  c5 {[%clk 0:02:59]} 2. e4 {[%clk 0:02:58]}  d6 {[%clk 0:02:50]} 3. d4 {[%clk 0:02:57]}  cxd4 {[%clk 0:02:50]} 4. Qxd4 {[%clk 0:02:58]}  Nc6 {[%clk 0:02:49]} 5. Qe3 {[%clk 0:02:58]}  Nf6 {[%clk 0:02:48]} 6. h3 {[%clk 0:02:58]}  g6 {[%clk 0:02:47]} 7. Be2 {[%clk 0:02:58]}  Bg7 {[%clk 0:02:48]} 8. O-O {[%clk 0:02:59]}  O-O {[%clk 0:02:48]} 9. Rd1 {[%clk 0:02:59]}  Qc7 {[%clk 0:02:37]} 10. c4 {[%clk 0:02:56]}  Nb4 {[%clk 0:02:15]} 11. Na3 {[%clk 0:02:41]}  a6 {[%clk 0:02:14]} 12. Bd2 {[%clk 0:02:37]}  Nc6 {[%clk 0:02:14]} 13. Bc3 {[%clk 0:02:35]}  Bd7 {[%clk 0:01:56]} 14. Rac1 {[%clk 0:02:31]}  Rfc8 {[%clk 0:01:55]} 15. Nc2 {[%clk 0:02:19]}  Qd8 {[%clk 0:01:54]} 16. Ncd4 {[%clk 0:02:17]}  Qf8 {[%clk 0:01:53]} 17. Nxc6 {[%clk 0:02:01]}  Bxc6 {[%clk 0:01:46]} 18. e5 {[%clk 0:01:50]}  Bh6 {[%clk 0:01:40]} 19. Ng5 {[%clk 0:01:39]}  Ne4 {[%clk 0:01:32]} 20. f4 {[%clk 0:01:33]}  Bxg5 {[%clk 0:01:27]} 21. fxg5 {[%clk 0:01:32]}  Nxc3 {[%clk 0:01:25]} 22. Qxc3 {[%clk 0:01:31]}  dxe5 {[%clk 0:01:16]} 23. Qxe5 {[%clk 0:01:32]}  e6 {[%clk 0:01:11]} 24. Rd6 {[%clk 0:01:26]}  Qg7 {[%clk 0:01:09]} 25. Qxg7+ {[%clk 0:01:23]}  Kxg7 {[%clk 0:01:09]} 26. Rcd1 {[%clk 0:01:24]}  Kf8 {[%clk 0:01:09]} 27. c5 {[%clk 0:01:18]}  Ke7 {[%clk 0:01:08]} 28. Bc4 {[%clk 0:01:17]}  Rc7 {[%clk 0:01:02]} 29. Kf2 {[%clk 0:01:15]}  Be8 {[%clk 0:00:56]} 30. b4 {[%clk 0:01:10]}  a5 {[%clk 0:00:57]} 31. a3 {[%clk 0:01:08]}  axb4 {[%clk 0:00:57]} 32. axb4 {[%clk 0:01:09]}  Ra4 {[%clk 0:00:57]} 33. Rb6 {[%clk 0:01:07]}  Bc6 {[%clk 0:00:48]} 34. Rd2 {[%clk 0:00:54]}  Rd7 {[%clk 0:00:40]} 35. Rc2 {[%clk 0:00:53]}  Be4 {[%clk 0:00:33]} 36. Re2 {[%clk 0:00:51]}  Rd4 {[%clk 0:00:32]} 37. Rxe4 {[%clk 0:00:36]}  Rxe4 {[%clk 0:00:31]} 38. Rxb7+ {[%clk 0:00:36]}  Kd8 {[%clk 0:00:29]} 39. Bd3 {[%clk 0:00:31]}  Rexb4 {[%clk 0:00:28]} 40. Rxf7 {[%clk 0:00:30]}  Rf4+ {[%clk 0:00:27]} 41. Rxf4 {[%clk 0:00:30]}  Rxf4+ {[%clk 0:00:28]} 42. Ke3 {[%clk 0:00:31]}  Rb4 {[%clk 0:00:23]} 43. c6 {[%clk 0:00:30]}  Kc7 {[%clk 0:00:23]} 44. Be4 {[%clk 0:00:29]}  e5 {[%clk 0:00:21]} 45. Kd3 {[%clk 0:00:25]}  Kd6 {[%clk 0:00:20]} 46. Ke3 {[%clk 0:00:25]}  Rb3+ {[%clk 0:00:20]} 47. Ke2 {[%clk 0:00:25]}  Rc3 {[%clk 0:00:20]} 48. Kd2 {[%clk 0:00:24]}  Rc5 {[%clk 0:00:19]} 49. Kd3 {[%clk 0:00:24]}  Kc7 {[%clk 0:00:20]} 50. Ke3 {[%clk 0:00:23]}  Kb6 {[%clk 0:00:20]} 51. Kd3 {[%clk 0:00:24]}  Kb5 {[%clk 0:00:20]} 52. Ke3 {[%clk 0:00:24]}  Rc3+ {[%clk 0:00:20]} 53. Kd2 {[%clk 0:00:24]}  Kb4 {[%clk 0:00:21]} 54. Bd5 {[%clk 0:00:22]}  Rc5 {[%clk 0:00:20]} 55. Be4 {[%clk 0:00:22]}  Kc4 {[%clk 0:00:21]} 56. Ke3 {[%clk 0:00:21]}  Kc3 {[%clk 0:00:21]} 57. Bf3 {[%clk 0:00:18]}  Kc2 {[%clk 0:00:17]} 58. Ke4 {[%clk 0:00:18]}  Kd2 {[%clk 0:00:17]} 59. c7 {[%clk 0:00:15]}  Rxc7 {[%clk 0:00:17]} 60. Kxe5 {[%clk 0:00:16]}  Rf7 {[%clk 0:00:16]} 61. Ke6 {[%clk 0:00:14]}  Rf5 {[%clk 0:00:15]} 62. h4 {[%clk 0:00:14]}  Rf4 {[%clk 0:00:15]} 63. h5 {[%clk 0:00:12]}  Rf5 {[%clk 0:00:11]} 64. hxg6 {[%clk 0:00:12]}  hxg6 {[%clk 0:00:11]} 65. Be4 {[%clk 0:00:11]}  Rxg5 {[%clk 0:00:11]} 66. Kf6 {[%clk 0:00:12]}  Rg4 {[%clk 0:00:11]} 67. Bxg6 {[%clk 0:00:10]}  Rxg2 {[%clk 0:00:12]} 68. Bf5 {[%clk 0:00:11]}  Ke3 {[%clk 0:00:12]} 69. Ke5 {[%clk 0:00:11]}  Rg5 {[%clk 0:00:11]} 70. Kf6 {[%clk 0:00:11]}  Kf4 {[%clk 0:00:12]} 71. Bc2 {[%clk 0:00:11]}  Rc5 {[%clk 0:00:13]} 72. Ba4 {[%clk 0:00:11]}  Ra5 {[%clk 0:00:13]} 73. Bb3 {[%clk 0:00:11]}  Ra6+ {[%clk 0:00:13]} 74. Kg7 {[%clk 0:00:09]}  Kg5 {[%clk 0:00:13]} 75. Bc4 {[%clk 0:00:07]}  Ra7+ {[%clk 0:00:14]} 76. Kh8 {[%clk 0:00:07]}  Kg6 {[%clk 0:00:14]} 77. Bd3+ {[%clk 0:00:06]}  Kh6 {[%clk 0:00:12]} 78. Bc4 {[%clk 0:00:05]}  Rg7 {[%clk 0:00:11]} 79. Bb3 {[%clk 0:00:05]}  Rg3 {[%clk 0:00:11]} 80. Bd5 {[%clk 0:00:04]}  Rc3 {[%clk 0:00:10]} 81. Be6 {[%clk 0:00:04]}  Rc6 {[%clk 0:00:10]} 82. Bd5 {[%clk 0:00:05]}  Rd6 {[%clk 0:00:10]} 83. Bc4 {[%clk 0:00:05]}  Kg6 {[%clk 0:00:10]} 84. Bb3 {[%clk 0:00:04]}  Rd8+ {[%clk 0:00:10]} 85. Bg8 {[%clk 0:00:04]}  Kf6 {[%clk 0:00:11]} 86. Kh7 {[%clk 0:00:04]}  Rb8 {[%clk 0:00:10]} 87. Kh8 {[%clk 0:00:04]}  Rb4 {[%clk 0:00:08]} 88. Bh7 {[%clk 0:00:04]}  Kf7 {[%clk 0:00:08]} 89. Bg8+ {[%clk 0:00:04]}  Kg6 {[%clk 0:00:09]} 90. Bh7+ {[%clk 0:00:04]}  Kf6 {[%clk 0:00:09]} 91. Bg8 {[%clk 0:00:04]}  Rd4 {[%clk 0:00:09]} 92. Bh7 {[%clk 0:00:04]}  Rh4 {[%clk 0:00:09]} 93. Kg8 {[%clk 0:00:04]}  Rg4+ {[%clk 0:00:09]} 94. Kh8 {[%clk 0:00:03]}  Kf7 {[%clk 0:00:10]} 95. Bf5 {[%clk 0:00:03]}  Rf4 {[%clk 0:00:10]} 96. Bh7 {[%clk 0:00:03]}  Kf6 {[%clk 0:00:10]} 97. Bg8 {[%clk 0:00:04]}  Rh4+ {[%clk 0:00:09]} 98. Bh7 {[%clk 0:00:04]}  Ra4 {[%clk 0:00:10]} 99. Bg8 {[%clk 0:00:04]}  Ra1 {[%clk 0:00:10]} 100. Bh7 {[%clk 0:00:05]}  Kf7 {[%clk 0:00:10]} 101. Bg8+ {[%clk 0:00:05]}  Kg6 {[%clk 0:00:11]} 102. Bh7+ {[%clk 0:00:06]}  Kh6 {[%clk 0:00:11]} 103. Bg8 {[%clk 0:00:06]}  Ra7 {[%clk 0:00:10]} 104. Be6 {[%clk 0:00:06]}  Kg6 {[%clk 0:00:10]} 105. Bd5 {[%clk 0:00:06]}  Kf6 {[%clk 0:00:10]} 106. Bg8 {[%clk 0:00:05]}  Rg7 {[%clk 0:00:10]} 107. Bc4 {[%clk 0:00:05]}  Rg4 {[%clk 0:00:10]} 108. Bd5 {[%clk 0:00:05]}  Rh4+ {[%clk 0:00:10]} 109. Kg8 {[%clk 0:00:05]}  Rh5 {[%clk 0:00:11]} 110. Bc4 {[%clk 0:00:04]}  Rh6 {[%clk 0:00:10]} 111. Bb3 {[%clk 0:00:04]}  Rh3 {[%clk 0:00:09]} 112. Bc4 {[%clk 0:00:04]}  Kg6 {[%clk 0:00:09]} 113. Bf7+ {[%clk 0:00:03]}  Kf6 {[%clk 0:00:09]} 114. Bc4 {[%clk 0:00:04]}  Rc3 {[%clk 0:00:09]} 115. Bd5 {[%clk 0:00:04]}  Rc8+ {[%clk 0:00:09]} 116. Kh7 {[%clk 0:00:04]}  Rc5 {[%clk 0:00:09]} 117. Bb3 {[%clk 0:00:04]}  Rc3 {[%clk 0:00:09]} 1/2-1/2


[Site "https://www.chess.com"]